bitfinex/quotes_SOLUSD_20250125
["timestamp","ask_amount","ask_price","bid_price","bid_amount"]
[1737849156847,0.95493756,256.74,256.68,23.776884]
[1737849157150,0.95493756,256.74,256.71,20.0]
[1737849157515,0.95493756,256.74,256.68,23.839884]
[1737849157516,1.40111553,256.74,256.68,0.063]
[1737849157739,1.40111553,256.69,256.68,0.063]
[1737849158440,1.40111553,256.69,256.67,3.8959]
[1737849158630,1.40111553,256.65,256.63,3.8966]
[1737849159027,0.44617797,256.65,256.63,3.8966]
[1737849160141,0.44617797,256.65,256.57,0.6]
[1737849160320,0.44617797,256.61,256.58,3.8974]
[1737849160725,0.44617797,256.63,256.58,3.8974]
[1737849161041,0.44617797,256.63,256.59,23.776884]
[1737849161246,0.44617797,256.63,256.62,20.0]
[1737849162146,0.95493756,256.59,256.58,3.8974]
[1737849162319,0.44617797,256.58,256.57,0.6]
[1737849162523,0.95493756,256.59,256.57,4.4974]
[1737849162735,0.44617797,256.6,256.57,4.4974]
[1737849162940,0.95493756,256.59,256.57,4.4974]
[1737849163247,0.44617797,256.6,256.57,4.4974]
[1737849163639,0.95493756,256.59,256.57,4.4974]
[1737849164338,0.44617797,256.58,256.57,0.6]
[1737849165546,1.40111553,256.62,256.6,20.0]
[1737849165923,0.44617797,256.62,256.6,20.0]
[1737849166124,1.40111553,256.64,256.6,20.0]
[1737849166426,0.44617797,256.61,256.59,3.8972]
[1737849166759,0.44617797,256.61,256.59,23.8972]
[1737849166932,1.40111553,256.63,256.59,23.8972]
[1737849167133,1.40111553,256.61,256.59,3.8972]
[1737849167459,1.40111553,256.58,256.57,4.4974]
[1737849167637,1.40111553,256.58,256.57,0.6]
[1737849168648,0.95493756,256.49,256.36,0.55382203]
[1737849168862,0.95493756,256.44,256.37,33.9006]
[1737849169044,0.95493756,256.44,256.37,3.9006]
[1737849169351,0.95493756,256.44,256.41,20.0]
[1737849169959,0.95493756,256.46,256.42,3.8998]
[1737849170140,0.95493756,256.45,256.42,3.8998]
[1737849170329,1.40111553,256.47,256.42,3.8998]
[1737849170529,0.95493756,256.45,256.42,3.8998]
[1737849170856,1.40111553,256.47,256.42,3.8998]
[1737849171051,0.95493756,256.43,256.42,3.8998]
[1737849171352,1.40111553,256.39,256.31,3.9015]
[1737849171655,0.95493756,256.39,256.32,0.55382203]
[1737849171837,0.95493756,256.42,256.31,13.6553]
[1737849172037,0.95493756,256.42,256.39,20.0]
[1737849172244,0.95493756,256.4,256.31,13.6553]
[1737849172426,0.44617797,256.41,256.31,13.6553]
[1737849172632,0.95493756,256.42,256.32,0.55382203]
[1737849173049,0.95493756,256.44,256.39,20.0]
[1737849173250,0.44617797,256.17,256.14,24.14157904]
[1737849173424,0.95493756,256.22,256.14,28.04557904]
[1737849173623,0.95493756,256.29,256.16,0.04506244]
[1737849173828,0.95493756,256.23,256.14,37.80577904]
[1737849174061,0.95493756,256.3,256.19,0.55382203]
[1737849174248,0.95493756,256.28,256.19,0.55382203]
[1737849174551,0.95493756,256.34,256.21,0.55382203]
[1737849174755,0.95493756,256.34,256.23,0.55382203]
[1737849175053,0.95493756,256.34,256.23,0.05382203]
[1737849175254,0.95493756,256.34,256.27,20.0]
[1737849175426,0.95493756,256.32,256.27,20.0]
[1737849175625,0.38787106,256.45,256.28,0.09404078]
[1737849175626,0.95493756,256.34,256.28,0.09404078]
[1737849175952,0.95493756,256.32,256.28,0.09404078]
[1737849176630,1.90111553,256.32,256.28,0.09404078]
[1737849176831,0.95493756,256.32,256.28,0.09404078]
[1737849177251,0.95493756,256.32,256.29,3.9018]
[1737849177458,0.95493756,256.36,256.32,20.0]
[1737849177953,0.94617797,256.37,256.32,20.0]
[1737849178255,0.94617797,256.39,256.32,20.0]
[1737849178442,0.95493756,256.35,256.32,20.0]
[1737849178843,0.94617797,256.36,256.32,20.0]
[1737849179433,0.94617797,256.36,256.33,3.9012]
[1737849179646,0.95493756,256.35,256.33,3.9012]
[1737849180042,0.95493756,256.37,256.33,3.9012]
[1737849180553,0.95493756,256.35,256.33,3.9012]
[1737849180753,0.94617797,256.34,256.33,3.9012]
[1737849181146,0.95493756,256.35,256.33,3.9012]
[1737849181948,0.95493756,256.37,256.33,3.9012]
[1737849182151,0.94617797,256.36,256.33,3.9012]
[1737849182561,0.95493756,256.41,256.36,20.0]
[1737849182732,0.95493756,256.41,256.37,3.9006]
[1737849183544,0.95493756,256.41,256.38,20.0]
[1737849184439,0.95493756,256.41,256.37,3.9006]
[1737849184635,0.95493756,256.49,256.41,23.776884]
[1737849184837,0.95493756,256.49,256.46,20.0]
[1737849185452,0.95493756,256.49,256.42,23.776884]
[1737849185651,0.95493756,256.49,256.44,20.0]
[1737849186164,0.95493756,256.46,256.44,20.0]
[1737849186364,0.95493756,256.48,256.44,20.0]
[1737849186742,0.95493756,256.45,256.44,23.8995]
[1737849187049,0.95493756,256.42,256.33,3.32]
[1737849187243,0.95493756,256.44,256.42,20.0]
[1737849187564,0.95493756,256.41,256.33,3.32]
[1737849187861,4.28587106,256.54,256.33,3.32]
[1737849187862,0.95493756,256.43,256.35,23.776884]
[1737849188050,0.95493756,256.43,256.42,20.0]
[1737849188249,0.95493756,256.45,256.42,20.0]
[1737849188941,2.38787106,256.59,256.42,20.0]
[1737849188942,0.95493756,256.43,256.42,20.0]
[1737849189141,0.95493756,256.47,256.42,20.0]
[1737849189643,0.95493756,256.45,256.42,20.0]
[1737849189964,0.95493756,256.43,256.42,23.8998]
[1737849191569,0.95493756,256.36,256.3,13.6557]
[1737849191774,0.95493756,256.32,256.3,3.9016]
[1737849192061,0.95493756,256.32,256.31,20.0]
[1737849192273,0.95493756,256.32,256.3,3.9016]
[1737849192973,0.95493756,256.32,256.31,20.0]
[1737849193445,0.95493756,256.37,256.32,3.9013]
[1737849193867,0.95493756,256.35,256.32,3.9013]
[1737849194165,0.03,256.43,256.36,20.0]
[1737849194166,0.95493756,256.37,256.36,20.0]
[1737849195550,0.95493756,256.37,256.36,23.9007]
[1737849195770,0.95493756,256.37,256.36,23.87415518]
[1737849200774,0.95493756,256.37,256.31,9.7535]
[1737849200974,0.95493756,256.37,256.33,23.776884]
[1737849201394,0.95493756,256.37,256.36,20.0]
[1737849202892,0.95493756,256.37,256.36,23.9007]
[1737849203474,0.95493756,256.39,256.36,23.9007]
[1737849203680,0.95493756,256.37,256.36,23.9007]
[1737849203973,0.95493756,256.41,256.4,20.0]
[1737849204351,0.98493756,256.43,256.41,23.776884]
[1737849204866,0.98493756,256.43,256.4,20.0]
[1737849205065,0.98493756,256.43,256.41,20.0]
[1737849205776,0.98493756,256.43,256.42,20.0]
[1737849206290,0.03,256.43,256.42,20.0]
[1737849206469,0.03,256.43,256.42,43.776884]
[1737849206779,0.95493756,256.4,256.38,13.6515]
[1737849207156,0.95493756,256.4,256.39,23.776884]
[1737849207676,0.95493756,256.4,256.38,23.776884]
[1737849207861,0.95493756,256.42,256.41,20.0]
[1737849209283,0.95493756,256.42,256.41,23.9]
[1737849215495,0.95493756,256.42,256.41,47.676884]
[1737849220703,0.03,256.43,256.42,23.776884]
[1737849221072,0.03,256.43,256.41,3.9]
[1737849221273,0.03,256.43,256.42,23.776884]
[1737849222095,0.95493756,256.5,256.49,20.0]
[1737849223193,0.95493756,256.47,256.42,37.426284]
[1737849223505,0.95493756,256.49,256.48,20.0]
[1737849223665,0.95493756,256.47,256.46,20.0]
[1737849224397,0.95493756,256.49,256.46,20.0]
[1737849224978,0.95493756,256.47,256.46,23.8992]
[1737849225696,0.95493756,256.49,256.48,20.0]
[1737849226273,0.95493756,256.49,256.47,3.899]
[1737849226889,0.95493756,256.49,256.48,23.776884]
[1737849227595,0.95493756,256.51,256.5,43.776884]
[1737849228099,0.95493756,256.51,256.5,47.675484]
[1737849229600,0.95493756,256.53,256.51,27.675184]
[1737849231635,0.95493756,256.55,256.54,23.898]
[1737849232401,0.95493756,256.55,256.54,3.898]
[1737849232798,0.95493756,256.55,256.54,23.898]
[1737849233303,0.95493756,256.55,256.54,47.674884]
[1737849235494,0.95493756,256.53,256.51,20.0]
[1737849235893,0.95493756,256.53,256.52,20.0]
[1737849237407,0.95493756,256.48,256.45,3.8993]
[1737849238100,0.95493756,256.48,256.47,23.776884]
[1737849238531,0.95493756,256.48,256.47,47.675884]
[1737849239321,0.95493756,256.48,256.47,20.0]
[1737849240410,0.95493756,256.5,256.49,20.0]
[1737849240608,0.95493756,256.5,256.4,9.7502]
[1737849240609,0.95493756,256.55,256.54,43.776884]
[1737849242940,0.41787106,256.68,256.54,47.674884]
[1737849242941,0.95493756,256.58,256.54,47.674884]
[1737849243112,0.95493756,256.6,256.59,23.776884]
[1737849243612,0.95493756,256.62,256.58,43.776884]
[1737849244015,0.95493756,256.64,256.58,43.776884]
[1737849245028,0.95493756,256.64,256.59,3.8972]
[1737849245816,0.95493756,256.67,256.66,20.0]
[1737849246011,0.03,256.68,256.66,43.776884]
[1737849246245,0.03,256.68,256.66,20.0]
[1737849246825,0.03,256.68,256.63,43.776884]
[1737849247137,0.98493756,256.68,256.67,20.0]
[1737849247846,0.95493756,256.64,256.6,3.8971]
[1737849248025,0.95493756,256.64,256.63,20.0]
[1737849248216,0.03,256.68,256.63,20.0]
[1737849248217,0.95493756,256.66,256.63,20.0]
[1737849248422,0.95493756,256.66,256.61,20.0]
[1737849248622,0.95493756,256.64,256.61,20.0]
[1737849249041,0.95493756,256.61,256.54,1.02959226]
[1737849249431,0.95493756,256.61,256.57,3.8975]
[1737849249638,0.95493756,256.63,256.59,20.0]
[1737849250247,0.95493756,256.63,256.62,20.0]
[1737849250850,0.95493756,256.63,256.62,43.776884]
[1737849251920,0.95493756,256.65,256.63,23.776884]
[1737849252248,0.95493756,256.65,256.64,43.776884]
[1737849252554,0.95493756,256.65,256.64,47.673384]
[1737849254434,0.98493756,256.68,256.65,23.776884]
[1737849254630,0.98493756,256.68,256.67,20.0]
[1737849255029,0.03,256.68,256.67,43.776884]
[1737849256037,0.03,256.68,256.67,47.672884]
[1737849256852,0.98493756,256.68,256.67,47.672884]
[1737849257148,0.98493756,256.68,256.67,3.896]
[1737849257453,0.98493756,256.68,256.65,3.8962]
[1737849257625,0.95493756,256.66,256.65,27.673084]
[1737849258035,0.95493756,256.66,256.65,3.8962]
[1737849264070,0.95493756,256.61,256.6,3.8971]
[1737849264350,0.95493756,256.61,256.51,19.370661]
[1737849264351,0.95493756,256.58,256.52,3.8983]
[1737849264938,0.95493756,256.58,256.53,23.776884]
[1737849265133,0.95493756,256.58,256.57,23.776884]
[1737849266354,0.95493756,256.58,256.56,20.0]
[1737849266542,0.95493756,256.58,256.57,23.776884]
[1737849268453,0.95493756,256.6,256.59,20.0]
[1737849268660,0.95493756,256.6,256.59,43.776884]
[1737849269658,0.95493756,256.6,256.59,47.674084]
[1737849275856,0.03,256.67,256.59,47.674084]
[1737849277646,0.03,256.67,256.64,23.776884]
[1737849277857,0.03,256.67,256.65,3.8963]
[1737849281545,0.03,256.67,256.66,23.776884]
[1737849285266,0.03,256.67,256.62,9.7417]
[1737849285654,0.03,256.67,256.65,20.0]
[1737849286243,0.03,256.67,256.66,3.8962]
[1737849289964,0.03,256.67,256.66,47.673084]
[1737849299687,0.0001,256.75,256.68,47.176884]
[1737849299850,8.6851,256.88,256.7,0.09]
[1737849300175,1.0,256.87,256.75,43.776884]
[1737849300382,2.0,256.83,256.71,11.36907406]
[1737849300555,0.38787106,256.82,256.71,15.26437406]
[1737849300750,0.38787106,256.82,256.74,20.0]
[1737849301463,0.38787106,256.82,256.71,11.36907406]
[1737849301671,0.38787106,256.82,256.72,3.8951]
[1737849301870,0.38787106,256.82,256.61,24.14157904]
[1737849301871,1.5074,256.77,256.68,3.8957]
[1737849302075,1.5074,256.77,256.69,23.776884]
[1737849302270,6.1777,256.81,256.69,23.776884]
[1737849302271,6.1777,256.81,256.72,20.0]
[1737849303553,1.5074,256.83,256.77,20.0]
[1737849305174,2.5074,256.83,256.73,3.8951]
[1737849305374,1.0,256.8,256.64,9.7411]
[1737849305675,1.0,256.78,256.67,3.896]
[1737849306056,0.38787106,256.79,256.67,3.896]
[1737849306461,0.38787106,256.79,256.67,23.896]
[1737849307060,0.38787106,256.79,256.68,20.0]
[1737849307982,0.38787106,256.79,256.69,3.8957]
[1737849308679,0.38787106,256.82,256.7,23.776884]
[1737849309097,5.401,256.83,256.7,23.776884]
[1737849309575,1.5074,256.83,256.7,23.776884]
[1737849309756,1.5074,256.83,256.73,20.0]
[1737849309960,1.0,256.58,256.32,1.0]
[1737849310169,1.0,256.6,256.54,30.0]
[1737849310380,1.0,256.57,256.54,30.0]
[1737849310654,0.38787106,256.59,256.54,30.0]
[1737849310960,1.38787106,256.59,256.39,9.7505]
[1737849311176,1.0,256.52,256.36,3.9006]
[1737849311501,1.0,256.46,256.34,0.063]
[1737849311800,5.28707106,256.46,256.34,0.063]
[1737849312591,5.28707106,256.46,256.45,16.40847521]
[1737849313576,0.38787106,256.48,256.45,16.40847521]
[1737849313781,1.38787106,256.51,256.45,16.40847521]
[1737849314078,1.38787106,256.51,256.36,3.9006]
[1737849314079,1.0,256.49,256.36,3.9006]
[1737849314259,0.38787106,256.48,256.36,3.9006]
[1737849314578,1.0,256.51,256.4,20.0]
[1737849315080,0.38787106,256.5,256.37,23.776884]
[1737849316080,0.38787106,256.5,256.36,23.776884]
[1737849316273,1.0,256.48,256.35,3.9009]
[1737849316467,1.0,256.44,256.35,3.9009]
[1737849316860,1.0,256.44,256.35,3.4009]
[1737849317078,1.0,256.42,256.35,3.4009]
[1737849317288,1.0,256.44,256.35,3.4009]
[1737849317464,0.38787106,256.47,256.35,3.4009]
[1737849317964,1.0,256.46,256.35,3.4009]
[1737849318171,0.38787106,256.47,256.35,3.4009]
[1737849318369,1.0,256.41,256.34,0.063]
[1737849318579,0.38787106,256.4,256.34,0.063]
[1737849318776,0.38787106,256.4,256.29,23.776884]
[1737849319082,3.8991,256.47,256.13,26.7835]
[1737849319083,2.0,256.39,256.13,26.7835]
[1737849319288,1.0,256.34,256.19,30.0]
[1737849319585,1.0,256.34,256.23,23.776884]
[1737849319791,1.38787106,256.4,256.16,20.0]
[1737849319968,0.38787106,256.4,256.21,23.776884]
[1737849320368,0.38787106,256.4,256.24,20.0]
[1737849320874,0.38787106,256.4,256.23,20.0]
[1737849321082,0.38787106,256.4,256.23,23.776884]
[1737849322188,1.0,256.39,256.24,3.9025]
[1737849322386,1.0,256.32,256.14,3.9041]
[1737849322603,0.38787106,256.31,256.15,30.0]
[1737849322780,0.38787106,256.33,256.18,20.0]
[1737849322964,1.38787106,256.36,256.18,20.0]
[1737849323165,0.38787106,256.36,256.26,20.0]
[1737849323382,6.2788,256.41,256.34,20.0]
[1737849323586,12.08103767,256.36,256.24,23.776884]
[1737849323789,5.87907452,256.45,256.26,26.2623]
[1737849324174,5.87907452,256.45,256.3,20.0]
[1737849324685,5.87907452,256.45,256.32,20.0]
[1737849325293,8.8215,256.53,256.32,20.0]
[1737849325470,1.0,256.5,256.3,20.0]
[1737849326392,0.38787106,256.49,256.3,20.0]
[1737849326696,1.0,256.4,256.21,3.903]
[1737849326885,6.74027106,256.39,256.21,3.903]
[1737849327089,1.0,256.37,256.21,3.903]
[1737849327280,0.38787106,256.36,256.21,3.903]
[1737849328191,1.0,256.32,256.21,3.903]
[1737849328388,0.38787106,256.31,256.16,3.9038]
[1737849328575,4.28937106,256.31,256.16,3.9038]
[1737849328775,4.28937106,256.31,256.18,20.0]
[1737849328996,4.28937106,256.31,256.16,3.9038]
[1737849330195,1.38787106,256.35,256.18,20.0]
[1737849330394,3.901,256.34,256.18,20.0]
[1737849330571,0.38787106,256.33,256.18,20.0]
[1737849330777,3.901,256.34,256.19,20.0]
[1737849332072,0.38787106,256.37,256.19,20.0]
[1737849332073,3.9007,256.36,256.2,3.9032]
[1737849332277,0.38787106,256.35,256.2,3.9032]
[1737849333103,3.901,256.34,256.2,3.9032]
[1737849334214,3.901,256.34,256.16,13.6633]
[1737849334215,0.38787106,256.33,256.16,13.6633]
[1737849334393,1.0,256.31,256.16,3.9038]
[1737849334703,0.38787106,256.3,256.16,3.9038]
[1737849335296,0.38787106,256.3,256.11,9.7612]
[1737849335601,3.9018,256.29,256.11,13.6657]
[1737849335800,0.38787106,256.28,256.14,20.0]
[1737849336185,1.0,256.25,256.05,9.7634]
[1737849336381,0.38787106,256.24,256.07,30.0]
[1737849336587,0.38787106,256.24,256.05,9.7634]
[1737849336907,0.38787106,256.24,256.08,20.0]
[1737849337211,1.38787106,256.24,256.05,9.7634]
[1737849337703,3.9027,256.23,256.05,9.7634]
[1737849337920,0.38787106,256.22,256.08,20.0]
[1737849338290,1.0,256.16,256.02,3.9059]
[1737849338792,1.0,256.16,256.03,20.0]
[1737849339509,3.9039,256.15,256.04,3.9056]
[1737849339692,6.66417106,256.14,256.02,3.9058]
[1737849339890,6.2763,256.14,256.02,3.9058]
[1737849340292,6.2763,256.14,256.0,0.25]
[1737849340293,2.93627106,256.13,256.0,4.1561]
[1737849341114,2.93627106,256.13,256.0,0.25]
[1737849341291,1.5484,256.13,256.0,4.1562]
[1737849341605,7.8247,256.2,256.04,20.0]
[1737849342411,0.38787106,256.19,256.03,20.0]
[1737849342711,0.38787106,256.19,255.97,23.776884]
[1737849342887,0.38787106,256.19,255.99,23.776884]
[1737849343296,7.8247,256.2,255.99,23.776884]
[1737849343696,7.8247,256.2,256.01,23.776884]
[1737849344098,0.38787106,256.19,256.01,23.776884]
[1737849344511,0.38787106,256.19,256.04,20.0]
[1737849344716,7.8247,256.2,256.04,20.0]
[1737849345614,0.38787106,256.19,256.04,20.0]
[1737849346121,0.38787106,256.19,256.05,3.9054]
[1737849346303,7.8247,256.2,256.08,20.0]
[1737849347000,0.38787106,256.19,256.05,3.9054]
[1737849347893,4.29127106,256.19,256.05,3.9054]
[1737849348313,0.38787106,256.19,256.05,3.9054]
[1737849349719,1.0,256.18,256.05,3.9054]
[1737849349920,3.9038,256.16,256.0,9.7652]
[1737849350122,0.38787106,256.15,256.0,9.7652]
[1737849350512,2.0,256.14,255.97,3.9067]
[1737849350823,6.1803,256.12,255.98,20.0]
[1737849351115,0.38787106,256.11,255.98,20.0]
[1737849351621,0.38787106,256.11,255.99,3.9064]
[1737849352124,2.0,256.09,255.9,1.005]
[1737849352320,0.38787106,256.08,255.92,3.9074]
[1737849352802,20.38787106,256.08,255.92,3.9074]
[1737849353335,45.16475506,256.08,255.92,3.9074]
[1737849353508,0.38787106,256.08,255.92,3.9074]
[1737849353821,4.29267106,256.09,255.92,23.9074]
[1737849354323,0.38787106,256.09,255.94,20.0]
[1737849354999,0.38787106,256.09,255.94,14.16774243]
[1737849355325,4.29277106,256.09,255.95,3.907]
[1737849356625,1.0,256.07,255.91,3.9076]
[1737849356923,1.0,256.05,255.91,3.9076]
[1737849357125,1.38787106,256.04,255.91,3.9076]
[1737849357303,0.38787106,256.04,255.91,3.9076]
[1737849357502,1.0,256.01,255.9,1.005]
[1737849357821,1.0,255.99,255.9,1.005]
[1737849358019,0.38787106,255.98,255.9,1.005]
[1737849358221,0.38787106,255.98,255.71,3.9106]
[1737849358222,1.0,255.86,255.71,3.9106]
[1737849358518,6.4355,255.81,255.65,0.99992203]
[1737849358725,7.7625,255.89,255.66,13.69]
[1737849358904,1.0,255.98,255.68,30.0]
[1737849358905,8.7625,255.97,255.68,30.0]
[1737849359239,8.7625,255.97,255.72,20.0]
[1737849359422,7.7625,255.97,255.8,20.0]
[1737849359621,7.7625,255.97,255.85,20.0]
[1737849359827,6.4355,255.97,255.85,20.0]
[1737849360121,6.4355,255.97,255.89,20.0]
[1737849360710,6.4355,256.04,255.93,20.0]
[1737849361222,6.4355,256.12,255.97,20.0]
[1737849362415,6.4355,256.12,255.98,23.776884]
[1737849362607,6.4355,256.12,256.02,3.9059]
[1737849363021,0.38787106,256.11,255.92,3.9074]
[1737849363507,0.38787106,256.11,255.93,23.776884]
[1737849363908,6.4355,256.12,255.96,43.776884]
[1737849364428,6.4355,256.12,255.92,3.9074]
[1737849364611,21.0,256.09,255.85,9.771]
[1737849364818,23.776884,256.06,255.84,3.9086]
[1737849365007,0.38787106,256.05,255.84,3.9086]
[1737849365406,3.905,256.08,255.88,20.0]
[1737849365407,4.29287106,256.08,255.88,20.0]
[1737849365622,3.905,256.08,255.92,20.0]
[1737849365817,6.82337106,256.12,255.96,20.0]
[1737849366145,3.9046,256.11,255.96,20.0]
[1737849366748,3.9046,256.11,255.97,3.9067]
[1737849367716,0.38787106,256.1,255.91,3.9076]
[1737849367913,0.36123839,256.1,255.91,3.9076]
[1737849368150,0.36123839,256.1,255.93,20.0]
[1737849368616,3.9048,256.09,255.94,23.9071]
[1737849370129,30.04312239,256.08,255.85,9.7711]
[1737849370547,1.0,256.06,255.85,9.7711]
[1737849370753,0.36123839,256.05,255.85,9.7711]
[1737849371271,1.0,255.99,255.71,1.573]
[1737849371563,6.74193839,255.98,255.72,3.9105]
[1737849371728,6.74193839,255.98,255.73,23.776884]
[1737849372063,6.74193839,255.98,255.8,20.0]
[1737849372559,6.74193839,255.98,255.72,3.9105]
[1737849372560,27.683584,255.97,255.72,9.7763]
[1737849372769,0.36123839,255.96,255.73,23.776884]
[1737849372945,0.36123839,255.96,255.72,9.7763]
[1737849373140,0.36123839,255.96,255.76,23.776884]
[1737849373566,3.907,255.95,255.79,20.0]
[1737849374133,1.0,255.89,255.64,1.35447336]
[1737849374461,6.3807,255.86,255.61,0.99992203]
[1737849374658,6.3807,255.86,255.62,1.0]
[1737849374830,6.3807,255.86,255.67,20.0]
[1737849375171,6.3807,255.86,255.75,20.0]
[1737849375832,6.3807,255.86,255.73,20.0]
[1737849377064,6.3807,255.93,255.77,20.0]
[1737849378265,6.3807,255.93,255.78,3.9096]
[1737849378655,6.3807,255.93,255.78,13.6836]
[1737849380339,6.74193839,255.93,255.73,23.776884]
[1737849380534,6.3807,255.93,255.73,23.776884]
[1737849380939,6.3807,255.93,255.76,20.0]
[1737849381654,6.3807,255.93,255.8,20.0]
[1737849381969,6.3807,255.93,255.77,13.6841]
[1737849382467,6.3807,255.93,255.8,20.0]
[1737849383070,6.3807,255.93,255.81,3.9091]
[1737849383476,0.36123839,255.92,255.72,9.776]
[1737849383775,24.13812239,255.92,255.69,3.9109]
[1737849383957,0.36123839,255.92,255.69,3.9109]
[1737849384288,23.776884,255.9,255.69,3.9109]
[1737849384475,0.36123839,255.89,255.69,13.6883]
[1737849384644,0.36123839,255.89,255.72,20.0]
[1737849384846,0.36123839,255.89,255.69,13.6883]
[1737849385046,0.36123839,255.89,255.65,23.776884]
[1737849385368,0.36123839,255.89,255.64,19.5584]
[1737849385369,3.908,255.88,255.64,19.5584]
[1737849385591,0.36123839,255.87,255.65,23.776884]
[1737849385797,0.36123839,255.87,255.68,20.0]
[1737849386775,0.36123839,255.87,255.72,20.0]
[1737849388199,4.26943839,255.87,255.73,3.9103]
[1737849389500,0.36123839,255.87,255.73,3.9103]
[1737849389800,6.0136,255.86,255.73,3.9103]
[1737849390602,0.36123839,255.85,255.73,3.9103]
[1737849390809,6.0136,255.86,255.73,3.9103]
[1737849391466,6.37483839,255.86,255.73,3.9103]
[1737849391893,10.28323839,255.86,255.73,3.9103]
[1737849392296,6.37483839,255.86,255.73,3.9103]
[1737849392892,6.0136,255.86,255.73,3.9103]
[1737849393098,6.37483839,255.86,255.73,3.9103]
[1737849393298,6.0136,255.86,255.73,3.9103]
[1737849394394,10.28323839,255.86,255.73,3.9103]
[1737849394588,1.597,255.85,255.73,3.9103]
[1737849394783,0.36123839,255.84,255.6,1.38773203]
[1737849395093,0.36123839,255.84,255.65,9.7788]
[1737849395500,0.36123839,255.84,255.68,20.0]
[1737849395998,3.9088,255.83,255.69,3.9109]
[1737849396198,0.36123839,255.84,255.69,13.6883]
[1737849397808,3.9088,255.83,255.64,20.0]
[1737849398001,0.36123839,255.82,255.64,20.0]
[1737849398905,0.36123839,255.82,255.61,57.030584]
[1737849398906,3.9091,255.81,255.65,9.7789]
[1737849399103,0.36123839,255.8,255.65,9.7789]
[1737849399506,3.9091,255.81,255.65,9.7789]
[1737849400099,3.9088,255.83,255.65,13.6904]
[1737849400296,4.27003839,255.83,255.65,13.6904]
[1737849400501,3.9088,255.83,255.65,13.6904]
[1737849400703,1.95823839,255.85,255.65,13.6904]
[1737849400704,1.597,255.85,255.66,43.776884]
[1737849400909,1.597,255.85,255.65,33.2483]
[1737849401210,5.5055,255.85,255.65,33.2483]
[1737849401715,5.5055,255.85,255.68,20.0]
[1737849402013,5.5055,255.85,255.72,20.0]
[1737849402612,1.597,255.85,255.72,20.0]
[1737849403894,1.597,255.85,255.73,3.9103]
[1737849404093,0.36123839,255.84,255.73,3.9103]
[1737849405512,0.36123839,255.84,255.65,19.5579]
[1737849405513,0.36123839,255.84,255.68,20.0]
[1737849405823,4.27003839,255.84,255.68,20.0]
[1737849406821,4.27003839,255.84,255.69,3.9109]
[1737849408318,4.27003839,255.84,255.66,20.0]
[1737849408994,4.27003839,255.84,255.67,20.0]
[1737849409222,1.597,255.85,255.67,20.0]
[1737849410506,1.597,255.85,255.71,20.0]
[1737849412195,51.340084,255.84,255.53,19.5664]
[1737849412515,15.2768,255.85,255.58,9.7813]
[1737849412516,6.92443839,255.83,255.58,9.7813]
[1737849412735,6.92443839,255.83,255.61,20.0]
[1737849412904,6.5632,255.83,255.65,20.0]
[1737849414342,6.5632,255.83,255.69,20.0]
[1737849416103,6.5632,255.83,255.7,3.9108]
[1737849417525,6.5632,255.83,255.73,20.0]
[1737849418432,6.5632,255.83,255.74,3.9102]
[1737849419723,6.5632,255.83,255.67,20.0]
[1737849419930,6.5632,255.83,255.71,20.0]
[1737849421030,6.5632,255.83,255.72,3.9105]
[1737849421203,6.5632,255.83,255.75,20.0]
[1737849421725,6.1762,255.89,255.76,43.776884]
[1737849422424,1.6196,255.92,255.76,43.776884]
[1737849422724,6.1762,255.95,255.85,20.0]
[1737849423027,6.1762,255.95,255.86,13.6792]